[Event "Titled Tuesday Blitz August 09 Late 2022"]
[White "Tanenbaum, Zachary"]
[Black "Mcconnell, Sullivan"]
[WhiteFideId "2060850"]
[BlackFideId "30934885"]
[WhiteElo "2175"]
[BlackElo "2626"]
[Result "0-1"]
[Round "10"]
[TimeControl "180+1"]
[Date "2022.08.09"]
[WhiteClock "0:00:02"]
[BlackClock "0:01:01"]

1. e4 {[%clk 0:03:00]}  e6 {[%clk 0:03:00]} 2. d4 {[%clk 0:03:00]}  d5 {[%clk 0:03:00]} 3. Nc3 {[%clk 0:03:01]}  Nf6 {[%clk 0:03:00]} 4. Bg5 {[%clk 0:03:01]}  dxe4 {[%clk 0:03:01]} 5. Nxe4 {[%clk 0:03:01]}  Be7 {[%clk 0:03:01]} 6. Bxf6 {[%clk 0:03:01]}  gxf6 {[%clk 0:03:02]} 7. Nf3 {[%clk 0:03:01]}  f5 {[%clk 0:03:02]} 8. Nc3 {[%clk 0:03:00]}  a6 {[%clk 0:03:01]} 9. Qe2 {[%clk 0:03:00]}  b5 {[%clk 0:03:00]} 10. O-O-O {[%clk 0:03:00]}  b4 {[%clk 0:03:00]} 11. Na4 {[%clk 0:02:57]}  Qd5 {[%clk 0:02:56]} 12. c4 {[%clk 0:02:42]}  bxc3 {[%clk 0:02:56]} 13. Nxc3 {[%clk 0:02:42]}  Qa5 {[%clk 0:02:51]} 14. d5 {[%clk 0:02:40]}  Bf6 {[%clk 0:02:47]} 15. Ne5 {[%clk 0:01:47]}  Qb4 {[%clk 0:02:16]} 16. dxe6 {[%clk 0:01:20]}  Qf4+ {[%clk 0:02:13]} 17. Kb1 {[%clk 0:01:10]}  Qxe5 {[%clk 0:02:03]} 18. exf7+ {[%clk 0:00:39]}  Kxf7 {[%clk 0:02:02]} 19. Qh5+ {[%clk 0:00:38]}  Kg7 {[%clk 0:02:02]} 20. Bc4 {[%clk 0:00:38]}  Qe8 {[%clk 0:01:46]} 21. Qf3 {[%clk 0:00:37]}  Ra7 {[%clk 0:01:38]} 22. Rhe1 {[%clk 0:00:36]}  Qg6 {[%clk 0:01:38]} 23. Nd5 {[%clk 0:00:36]}  Bb7 {[%clk 0:01:35]} 24. Qe3 {[%clk 0:00:33]}  f4+ {[%clk 0:01:35]} 25. Qd3 {[%clk 0:00:31]}  Bxd5 {[%clk 0:01:30]} 26. Bxd5 {[%clk 0:00:30]}  Qxd3+ {[%clk 0:01:30]} 27. Rxd3 {[%clk 0:00:31]}  Rd8 {[%clk 0:01:29]} 28. Re4 {[%clk 0:00:24]}  c6 {[%clk 0:01:29]} 29. Bc4 {[%clk 0:00:24]}  Rxd3 {[%clk 0:01:27]} 30. Bxd3 {[%clk 0:00:25]}  Rd7 {[%clk 0:01:22]} 31. Kc2 {[%clk 0:00:25]}  Bxb2 {[%clk 0:01:18]} 32. Rxf4 {[%clk 0:00:21]}  Be5 {[%clk 0:01:13]} 33. Rg4+ {[%clk 0:00:19]}  Kf8 {[%clk 0:01:13]} 34. f4 {[%clk 0:00:18]}  Bd4 {[%clk 0:01:11]} 35. f5 {[%clk 0:00:16]}  c5 {[%clk 0:01:10]} 36. Bc4 {[%clk 0:00:15]}  Nc6 {[%clk 0:01:10]} 37. Rg8+ {[%clk 0:00:11]}  Ke7 {[%clk 0:01:11]} 38. g4 {[%clk 0:00:11]}  Ne5 {[%clk 0:01:09]} 39. Be6 {[%clk 0:00:11]}  Rc7 {[%clk 0:01:07]} 40. g5 {[%clk 0:00:10]}  c4 {[%clk 0:01:03]} 41. h4 {[%clk 0:00:07]}  c3 {[%clk 0:01:00]} 42. h5 {[%clk 0:00:07]}  Nf3 {[%clk 0:01:00]} 43. g6 {[%clk 0:00:03]}  hxg6 {[%clk 0:01:00]} 44. hxg6 {[%clk 0:00:03]}  Ne1+ {[%clk 0:01:00]} 45. Kc1 {[%clk 0:00:03]}  Be3+ {[%clk 0:00:59]} 46. Kd1 {[%clk 0:00:03]}  c2+ {[%clk 0:01:00]} 47. Ke2 {[%clk 0:00:03]}  c1=Q {[%clk 0:01:00]} 48. g7 {[%clk 0:00:02]}  Qd2+ {[%clk 0:01:00]} 49. Kf1 {[%clk 0:00:02]}  Qf2# {[%clk 0:01:01]} 0-1


[Site "https://www.chess.com"]

[Event "Titled Tuesday Blitz August 09 Late 2022"]
[White "Wagner, Dennis"]
[Black "Esipenko, Andrey"]
[WhiteFideId "24650684"]
[BlackFideId "24175439"]
[WhiteElo "2355"]
[BlackElo "2619"]
[Result "0-1"]
[Round "10"]
[TimeControl "180+1"]
[Date "2022.08.09"]
[WhiteClock "0:00:04"]
[BlackClock "0:00:50"]

1. e4 {[%clk 0:03:00]}  e5 {[%clk 0:02:59]} 2. Nf3 {[%clk 0:03:01]}  Nf6 {[%clk 0:02:59]} 3. Nxe5 {[%clk 0:02:58]}  d6 {[%clk 0:03:00]} 4. Nd3 {[%clk 0:02:56]}  Nxe4 {[%clk 0:03:00]} 5. Qe2 {[%clk 0:02:56]}  Qe7 {[%clk 0:03:00]} 6. Nf4 {[%clk 0:02:57]}  Nc6 {[%clk 0:02:54]} 7. Nd5 {[%clk 0:02:56]}  Nd4 {[%clk 0:02:55]} 8. Nxe7 {[%clk 0:02:56]}  Nxe2 {[%clk 0:02:55]} 9. Nd5 {[%clk 0:02:46]}  Nd4 {[%clk 0:02:50]} 10. d3 {[%clk 0:02:42]}  Nxc2+ {[%clk 0:02:31]} 11. Kd1 {[%clk 0:02:40]}  Nxa1 {[%clk 0:02:28]} 12. dxe4 {[%clk 0:02:40]}  Kd8 {[%clk 0:02:26]} 13. Bg5+ {[%clk 0:02:39]}  f6 {[%clk 0:02:27]} 14. Bf4 {[%clk 0:02:39]}  c6 {[%clk 0:02:25]} 15. Ne3 {[%clk 0:02:29]}  a5 {[%clk 0:02:19]} 16. Nc3 {[%clk 0:02:25]}  b5 {[%clk 0:02:01]} 17. Kd2 {[%clk 0:02:24]}  Be6 {[%clk 0:01:57]} 18. Bd3 {[%clk 0:02:17]}  Bxa2 {[%clk 0:01:56]} 19. Rxa1 {[%clk 0:01:51]}  Be6 {[%clk 0:01:52]} 20. Nc2 {[%clk 0:01:41]}  Be7 {[%clk 0:01:45]} 21. Nd4 {[%clk 0:01:40]}  Bd7 {[%clk 0:01:46]} 22. f3 {[%clk 0:01:32]}  Re8 {[%clk 0:01:44]} 23. g4 {[%clk 0:01:30]}  g6 {[%clk 0:01:37]} 24. h4 {[%clk 0:01:29]}  Bf8 {[%clk 0:01:36]} 25. g5 {[%clk 0:01:24]}  fxg5 {[%clk 0:01:34]} 26. hxg5 {[%clk 0:01:22]}  Bg7 {[%clk 0:01:29]} 27. Nde2 {[%clk 0:01:11]}  Ke7 {[%clk 0:01:27]} 28. Rh1 {[%clk 0:01:08]}  Rh8 {[%clk 0:01:27]} 29. Be3 {[%clk 0:01:06]}  a4 {[%clk 0:01:25]} 30. Bc2 {[%clk 0:00:59]}  a3 {[%clk 0:01:21]} 31. bxa3 {[%clk 0:00:49]}  Rxa3 {[%clk 0:01:22]} 32. Bd4 {[%clk 0:00:48]}  Bxd4 {[%clk 0:01:23]} 33. Nxd4 {[%clk 0:00:49]}  b4 {[%clk 0:01:24]} 34. Nce2 {[%clk 0:00:45]}  c5 {[%clk 0:01:24]} 35. Nb3 {[%clk 0:00:43]}  Be6 {[%clk 0:01:23]} 36. Nbc1 {[%clk 0:00:37]}  Rxf3 {[%clk 0:01:21]} 37. Nd3 {[%clk 0:00:33]}  b3 {[%clk 0:01:19]} 38. Bd1 {[%clk 0:00:31]}  c4 {[%clk 0:01:20]} 39. Nb4 {[%clk 0:00:22]}  Rf2 {[%clk 0:01:15]} 40. Ke3 {[%clk 0:00:22]}  Rg2 {[%clk 0:01:15]} 41. Nf4 {[%clk 0:00:20]}  Rxg5 {[%clk 0:01:15]} 42. Nbd5+ {[%clk 0:00:19]}  Bxd5 {[%clk 0:01:13]} 43. Nxd5+ {[%clk 0:00:20]}  Ke6 {[%clk 0:01:08]} 44. Kd4 {[%clk 0:00:20]}  Rg3 {[%clk 0:01:02]} 45. Rf1 {[%clk 0:00:15]}  Rc8 {[%clk 0:00:56]} 46. Rf6+ {[%clk 0:00:12]}  Kd7 {[%clk 0:00:57]} 47. Rf7+ {[%clk 0:00:13]}  Ke8 {[%clk 0:00:56]} 48. Rc7 {[%clk 0:00:06]}  Rxc7 {[%clk 0:00:51]} 49. Nxc7+ {[%clk 0:00:07]}  Kd7 {[%clk 0:00:50]} 50. Nd5 {[%clk 0:00:03]}  Rd3+ {[%clk 0:00:50]} 51. Kxc4 {[%clk 0:00:03]}  Rxd1 {[%clk 0:00:51]} 52. Kxb3 {[%clk 0:00:04]}  h5 {[%clk 0:00:50]} 0-1


[Site "https://www.chess.com"]

[Event "Titled Tuesday Blitz August 09 Late 2022"]
[White "Xie, Luke"]
[Black "Zhurbinsky, David"]
[WhiteFideId "2099667"]
[BlackFideId "2072904"]
[WhiteElo "2411"]
[BlackElo "2556"]
[Result "1-0"]
[Round "10"]
[TimeControl "180+1"]
[Date "2022.08.09"]
[WhiteClock "0:00:16"]
[BlackClock "0:00:09"]

1. e4 {[%clk 0:03:00]}  e5 {[%clk 0:02:58]} 2. Nf3 {[%clk 0:03:00]}  Nc6 {[%clk 0:02:58]} 3. Bb5 {[%clk 0:03:01]}  a6 {[%clk 0:02:57]} 4. Ba4 {[%clk 0:03:01]}  Nf6 {[%clk 0:02:56]} 5. Bxc6 {[%clk 0:03:02]}  dxc6 {[%clk 0:02:55]} 6. d3 {[%clk 0:03:03]}  Bd6 {[%clk 0:02:48]} 7. b3 {[%clk 0:03:02]}  Bg4 {[%clk 0:02:46]} 8. Bb2 {[%clk 0:03:03]}  Qe7 {[%clk 0:02:46]} 9. h3 {[%clk 0:03:02]}  Bh5 {[%clk 0:02:40]} 10. Nbd2 {[%clk 0:03:01]}  O-O-O {[%clk 0:02:36]} 11. Nc4 {[%clk 0:03:00]}  Rhe8 {[%clk 0:02:35]} 12. Qe2 {[%clk 0:02:52]}  Bb4+ {[%clk 0:02:18]} 13. Kf1 {[%clk 0:02:42]}  Bxf3 {[%clk 0:02:06]} 14. Qxf3 {[%clk 0:02:43]}  Nd7 {[%clk 0:02:00]} 15. g3 {[%clk 0:02:26]}  g6 {[%clk 0:01:54]} 16. Kg2 {[%clk 0:02:17]}  f5 {[%clk 0:01:52]} 17. exf5 {[%clk 0:01:59]}  gxf5 {[%clk 0:01:53]} 18. Qxf5 {[%clk 0:01:42]}  Rf8 {[%clk 0:01:49]} 19. Qe4 {[%clk 0:01:34]}  Bc5 {[%clk 0:01:42]} 20. Rhf1 {[%clk 0:01:34]}  Rde8 {[%clk 0:01:33]} 21. Rae1 {[%clk 0:01:33]}  Qf7 {[%clk 0:01:26]} 22. Nxe5 {[%clk 0:00:51]}  Qh5 {[%clk 0:00:56]} 23. f4 {[%clk 0:00:39]}  Nf6 {[%clk 0:00:53]} 24. Qf3 {[%clk 0:00:31]}  Qh6 {[%clk 0:00:53]} 25. d4 {[%clk 0:00:29]}  Bd6 {[%clk 0:00:51]} 26. Ng4 {[%clk 0:00:29]}  Nxg4 {[%clk 0:00:51]} 27. hxg4 {[%clk 0:00:29]}  Qg6 {[%clk 0:00:47]} 28. f5 {[%clk 0:00:24]}  Qg5 {[%clk 0:00:44]} 29. Bc1 {[%clk 0:00:24]}  Qf6 {[%clk 0:00:42]} 30. c3 {[%clk 0:00:22]}  c5 {[%clk 0:00:37]} 31. g5 {[%clk 0:00:19]}  Qf7 {[%clk 0:00:33]} 32. f6 {[%clk 0:00:18]}  cxd4 {[%clk 0:00:32]} 33. cxd4 {[%clk 0:00:19]}  Kb8 {[%clk 0:00:32]} 34. Bf4 {[%clk 0:00:19]}  Bb4 {[%clk 0:00:31]} 35. Rc1 {[%clk 0:00:17]}  Ba5 {[%clk 0:00:29]} 36. b4 {[%clk 0:00:17]}  Bb6 {[%clk 0:00:30]} 37. a4 {[%clk 0:00:17]}  Qa2+ {[%clk 0:00:25]} 38. Rf2 {[%clk 0:00:15]}  Qxa4 {[%clk 0:00:20]} 39. Rfc2 {[%clk 0:00:14]}  Qxb4 {[%clk 0:00:17]} 40. Bxc7+ {[%clk 0:00:14]}  Bxc7 {[%clk 0:00:17]} 41. Rxc7 {[%clk 0:00:15]}  Qd2+ {[%clk 0:00:18]} 42. Kh3 {[%clk 0:00:15]}  Qb2 {[%clk 0:00:12]} 43. R1c3 {[%clk 0:00:14]}  Re2 {[%clk 0:00:09]} 44. Rxb7+ {[%clk 0:00:08]}  Qxb7 {[%clk 0:00:07]} 45. Rb3 {[%clk 0:00:09]}  Rb2 {[%clk 0:00:04]} 46. Rxb7+ {[%clk 0:00:09]}  Rxb7 {[%clk 0:00:05]} 47. Qc6 {[%clk 0:00:09]}  Rc8 {[%clk 0:00:03]} 48. Qxa6 {[%clk 0:00:09]}  Rc2 {[%clk 0:00:03]} 49. Qd6+ {[%clk 0:00:09]}  Ka7 {[%clk 0:00:03]} 50. Qd5 {[%clk 0:00:09]}  h5 {[%clk 0:00:02]} 51. gxh6 {[%clk 0:00:09]}  Rcc7 {[%clk 0:00:01]} 52. Qe6 {[%clk 0:00:09]}  Rf7 {[%clk 0:00:01]} 53. Qf5 {[%clk 0:00:09]}  Rbd7 {[%clk 0:00:02]} 54. g4 {[%clk 0:00:08]}  Rxd4 {[%clk 0:00:02]} 55. Qc5+ {[%clk 0:00:09]}  Kb8 {[%clk 0:00:02]} 56. Qxd4 {[%clk 0:00:09]}  Rh7 {[%clk 0:00:01]} 57. g5 {[%clk 0:00:10]}  Rf7 {[%clk 0:00:01]} 58. Qd8+ {[%clk 0:00:10]}  Kb7 {[%clk 0:00:02]} 59. Qd5+ {[%clk 0:00:11]}  Ka6 {[%clk 0:00:02]} 60. Qxf7 {[%clk 0:00:11]}  Kb5 {[%clk 0:00:03]} 61. Qe6 {[%clk 0:00:12]}  Kb4 {[%clk 0:00:04]} 62. f7 {[%clk 0:00:13]}  Ka3 {[%clk 0:00:05]} 63. f8=Q+ {[%clk 0:00:13]}  Kb2 {[%clk 0:00:06]} 64. Qb8+ {[%clk 0:00:14]}  Kc3 {[%clk 0:00:07]} 65. Qc6+ {[%clk 0:00:14]}  Kd4 {[%clk 0:00:07]} 66. Qd8+ {[%clk 0:00:15]}  Ke3 {[%clk 0:00:08]} 67. Qce8+ {[%clk 0:00:15]}  Kf4 {[%clk 0:00:09]} 68. Qf6# {[%clk 0:00:16]} 1-0


[Site "https://www.chess.com"]

[Event "Titled Tuesday Blitz August 09 Late 2022"]
[White "Yurasova, Daria"]
[Black "Gurevich, Dmitry"]
[WhiteFideId "34146919"]
[BlackFideId "2000407"]
[WhiteElo "2021"]
[BlackElo "2506"]
[Result "1-0"]
[Round "10"]
[TimeControl "180+1"]
[Date "2022.08.09"]
[WhiteClock "0:00:05"]
[BlackClock "0:00:07"]

1. d4 {[%clk 0:03:00]}  Nf6 {[%clk 0:02:56]} 2. Nf3 {[%clk 0:03:00]}  e6 {[%clk 0:02:55]} 3. c4 {[%clk 0:03:00]}  a6 {[%clk 0:02:54]} 4. g3 {[%clk 0:02:59]}  c5 {[%clk 0:02:53]} 5. Bg2 {[%clk 0:02:56]}  cxd4 {[%clk 0:02:52]} 6. Nxd4 {[%clk 0:02:57]}  Qc7 {[%clk 0:02:51]} 7. b3 {[%clk 0:02:51]}  Be7 {[%clk 0:02:50]} 8. O-O {[%clk 0:02:50]}  O-O {[%clk 0:02:49]} 9. Bb2 {[%clk 0:02:50]}  Nc6 {[%clk 0:02:46]} 10. Nc2 {[%clk 0:02:48]}  b5 {[%clk 0:02:41]} 11. Nd2 {[%clk 0:02:45]}  Bb7 {[%clk 0:02:38]} 12. Rc1 {[%clk 0:02:45]}  bxc4 {[%clk 0:02:31]} 13. Nxc4 {[%clk 0:02:45]}  d5 {[%clk 0:02:31]} 14. Nd2 {[%clk 0:02:38]}  Qb6 {[%clk 0:02:30]} 15. Nf3 {[%clk 0:02:36]}  a5 {[%clk 0:02:23]} 16. Ncd4 {[%clk 0:02:30]}  a4 {[%clk 0:02:19]} 17. Nxc6 {[%clk 0:02:30]}  Bxc6 {[%clk 0:02:18]} 18. Bd4 {[%clk 0:02:30]}  Qb7 {[%clk 0:02:12]} 19. Ne5 {[%clk 0:02:28]}  Bb5 {[%clk 0:02:07]} 20. Rb1 {[%clk 0:02:18]}  Qa6 {[%clk 0:02:00]} 21. Bf3 {[%clk 0:02:05]}  axb3 {[%clk 0:01:51]} 22. axb3 {[%clk 0:02:06]}  Rfc8 {[%clk 0:01:49]} 23. Ra1 {[%clk 0:01:30]}  Qb7 {[%clk 0:01:49]} 24. Qb1 {[%clk 0:01:24]}  Ne4 {[%clk 0:01:41]} 25. Rxa8 {[%clk 0:01:21]}  Rxa8 {[%clk 0:01:33]} 26. Qc2 {[%clk 0:01:02]}  f6 {[%clk 0:01:29]} 27. Nd3 {[%clk 0:01:01]}  Rc8 {[%clk 0:01:26]} 28. Qb2 {[%clk 0:01:00]}  e5 {[%clk 0:01:19]} 29. Be3 {[%clk 0:00:57]}  Qd7 {[%clk 0:00:36]} 30. Rc1 {[%clk 0:00:50]}  Rxc1+ {[%clk 0:00:35]} 31. Qxc1 {[%clk 0:00:51]}  Qe6 {[%clk 0:00:28]} 32. Qc7 {[%clk 0:00:44]}  Qd7 {[%clk 0:00:26]} 33. Qb8+ {[%clk 0:00:40]}  Kf7 {[%clk 0:00:26]} 34. b4 {[%clk 0:00:30]}  Nc3 {[%clk 0:00:24]} 35. Nc5 {[%clk 0:00:15]}  Qc6 {[%clk 0:00:20]} 36. Kg2 {[%clk 0:00:06]}  e4 {[%clk 0:00:19]} 37. Bg4 {[%clk 0:00:06]}  Kg6 {[%clk 0:00:14]} 38. Bd7 {[%clk 0:00:04]}  Qd6 {[%clk 0:00:07]} 39. Qe8# {[%clk 0:00:05]} 1-0


[Site "https://www.chess.com"]

[Event "Titled Tuesday Blitz August 09 Late 2022"]
[White "Zhang, Eric"]
[Black "Dimitrov, Atanas"]
[WhiteFideId "30907667"]
[BlackFideId "2901315"]
[WhiteElo "2505"]
[BlackElo "2675"]
[Result "0-1"]
[Round "10"]
[TimeControl "180+1"]
[Date "2022.08.09"]
[WhiteClock "0:00:21"]
[BlackClock "0:00:47"]

1. d4 {[%clk 0:03:00]}  Nf6 {[%clk 0:02:59]} 2. c4 {[%clk 0:03:01]}  g6 {[%clk 0:02:59]} 3. f3 {[%clk 0:03:01]}  Bg7 {[%clk 0:02:55]} 4. e4 {[%clk 0:03:01]}  d6 {[%clk 0:02:56]} 5. Nc3 {[%clk 0:03:01]}  O-O {[%clk 0:02:56]} 6. Be3 {[%clk 0:03:02]}  Nbd7 {[%clk 0:02:53]} 7. Bd3 {[%clk 0:03:01]}  e6 {[%clk 0:02:47]} 8. Nge2 {[%clk 0:03:00]}  c5 {[%clk 0:02:47]} 9. d5 {[%clk 0:02:52]}  Ne5 {[%clk 0:02:47]} 10. O-O {[%clk 0:02:50]}  b6 {[%clk 0:02:45]} 11. Kh1 {[%clk 0:02:47]}  Ba6 {[%clk 0:02:43]} 12. dxe6 {[%clk 0:02:45]}  fxe6 {[%clk 0:02:42]} 13. b3 {[%clk 0:02:39]}  Qe7 {[%clk 0:02:41]} 14. f4 {[%clk 0:02:34]}  Nxd3 {[%clk 0:02:31]} 15. Qxd3 {[%clk 0:02:35]}  Bb7 {[%clk 0:02:32]} 16. Ng3 {[%clk 0:02:24]}  Rad8 {[%clk 0:02:31]} 17. Rad1 {[%clk 0:02:21]}  Kh8 {[%clk 0:02:23]} 18. Qc2 {[%clk 0:02:17]}  Ng4 {[%clk 0:02:20]} 19. Bg1 {[%clk 0:02:10]}  Bd4 {[%clk 0:02:07]} 20. Rxd4 {[%clk 0:01:43]}  cxd4 {[%clk 0:02:08]} 21. Bxd4+ {[%clk 0:01:43]}  e5 {[%clk 0:02:06]} 22. Bg1 {[%clk 0:01:31]}  exf4 {[%clk 0:02:01]} 23. Bd4+ {[%clk 0:01:30]}  Ne5 {[%clk 0:02:00]} 24. Nge2 {[%clk 0:01:26]}  Kg8 {[%clk 0:01:47]} 25. Rxf4 {[%clk 0:01:11]}  Rxf4 {[%clk 0:01:46]} 26. Nxf4 {[%clk 0:01:12]}  Rf8 {[%clk 0:01:46]} 27. g3 {[%clk 0:00:57]}  Qf7 {[%clk 0:01:39]} 28. Qe2 {[%clk 0:00:49]}  Bc8 {[%clk 0:01:26]} 29. Nb5 {[%clk 0:00:46]}  Bg4 {[%clk 0:01:25]} 30. Qb2 {[%clk 0:00:42]}  Nd3 {[%clk 0:00:59]} 31. Nxd6 {[%clk 0:00:21]}  Nxb2 {[%clk 0:00:59]} 32. Nxf7 {[%clk 0:00:21]}  Rxf7 {[%clk 0:00:59]} 33. Bxb2 {[%clk 0:00:21]}  Bf3+ {[%clk 0:00:58]} 34. Kg1 {[%clk 0:00:21]}  Bxe4 {[%clk 0:00:59]} 35. Kf2 {[%clk 0:00:21]}  g5 {[%clk 0:00:58]} 36. Ke3 {[%clk 0:00:21]}  gxf4+ {[%clk 0:00:46]} 37. Kxe4 {[%clk 0:00:19]}  f3 {[%clk 0:00:47]} 38. Bd4 {[%clk 0:00:20]}  f2 {[%clk 0:00:47]} 39. Bxf2 {[%clk 0:00:21]}  Rxf2 {[%clk 0:00:47]} 0-1


[Site "https://www.chess.com"]

[Event "Titled Tuesday Blitz August 09 Late 2022"]
[White "Zhigalko, Sergei"]
[Black "Rosen, Eric"]
[WhiteFideId "13502956"]
[BlackFideId "2032562"]
[WhiteElo "2662"]
[BlackElo "2362"]
[Result "1-0"]
[Round "10"]
[TimeControl "180+1"]
[Date "2022.08.09"]
[WhiteClock "0:00:14"]
[BlackClock "0:00:01"]

1. e4 {[%clk 0:03:00]}  c5 {[%clk 0:03:00]} 2. Nf3 {[%clk 0:03:00]}  d6 {[%clk 0:03:00]} 3. d4 {[%clk 0:03:01]}  Nf6 {[%clk 0:03:00]} 4. Nc3 {[%clk 0:03:01]}  cxd4 {[%clk 0:03:01]} 5. Qxd4 {[%clk 0:03:02]}  Nc6 {[%clk 0:02:59]} 6. Bb5 {[%clk 0:03:02]}  Bd7 {[%clk 0:02:59]} 7. Bxc6 {[%clk 0:03:02]}  Bxc6 {[%clk 0:02:58]} 8. Bg5 {[%clk 0:03:03]}  e6 {[%clk 0:02:38]} 9. O-O-O {[%clk 0:03:02]}  Be7 {[%clk 0:02:38]} 10. Rhe1 {[%clk 0:03:03]}  O-O {[%clk 0:02:28]} 11. Kb1 {[%clk 0:03:03]}  Qa5 {[%clk 0:02:21]} 12. Qd2 {[%clk 0:03:02]}  Rfe8 {[%clk 0:02:00]} 13. Nd4 {[%clk 0:03:01]}  Rac8 {[%clk 0:01:50]} 14. f3 {[%clk 0:02:54]}  b5 {[%clk 0:01:39]} 15. Nd5 {[%clk 0:02:51]}  Qxd2 {[%clk 0:01:36]} 16. Nxe7+ {[%clk 0:02:51]}  Rxe7 {[%clk 0:01:36]} 17. Rxd2 {[%clk 0:02:39]}  h6 {[%clk 0:01:18]} 18. Bh4 {[%clk 0:02:22]}  g5 {[%clk 0:00:58]} 19. Bg3 {[%clk 0:02:21]}  d5 {[%clk 0:00:59]} 20. Nxc6 {[%clk 0:02:20]}  Rxc6 {[%clk 0:00:48]} 21. exd5 {[%clk 0:02:21]}  Rc8 {[%clk 0:00:37]} 22. dxe6 {[%clk 0:02:03]}  fxe6 {[%clk 0:00:36]} 23. h4 {[%clk 0:01:48]}  Kf7 {[%clk 0:00:34]} 24. hxg5 {[%clk 0:01:46]}  hxg5 {[%clk 0:00:35]} 25. Re5 {[%clk 0:01:47]}  Rh8 {[%clk 0:00:13]} 26. c3 {[%clk 0:01:23]}  g4 {[%clk 0:00:13]} 27. Rxb5 {[%clk 0:01:20]}  gxf3 {[%clk 0:00:14]} 28. gxf3 {[%clk 0:01:21]}  Rh3 {[%clk 0:00:14]} 29. Rg2 {[%clk 0:01:00]}  Nd5 {[%clk 0:00:10]} 30. a3 {[%clk 0:00:43]}  Rh1+ {[%clk 0:00:07]} 31. Ka2 {[%clk 0:00:43]}  Ne3 {[%clk 0:00:07]} 32. Re2 {[%clk 0:00:36]}  Nf5 {[%clk 0:00:07]} 33. Bb8 {[%clk 0:00:26]}  Rf1 {[%clk 0:00:07]} 34. f4 {[%clk 0:00:26]}  Rd7 {[%clk 0:00:03]} 35. Rh2 {[%clk 0:00:16]}  Rdd1 {[%clk 0:00:01]} 36. Bxa7 {[%clk 0:00:14]} 1-0


[Site "https://www.chess.com"]

[Event "Titled Tuesday Blitz August 09 Late 2022"]
[White "Chigaev, Maksim"]
[Black "Naroditsky, Daniel"]
[WhiteFideId "4108116"]
[BlackFideId "2026961"]
[WhiteElo "2487"]
[BlackElo "2628"]
[Result "0-1"]
[Round "11"]
[TimeControl "180+1"]
[Date "2022.08.09"]
[WhiteClock "0:00:01"]
[BlackClock "0:00:03"]

1. e4 {[%clk 0:03:00]}  e5 {[%clk 0:03:00]} 2. Nf3 {[%clk 0:03:00]}  Nc6 {[%clk 0:03:00]} 3. g3 {[%clk 0:03:00]}  Nf6 {[%clk 0:02:58]} 4. d3 {[%clk 0:03:00]}  Bc5 {[%clk 0:02:52]} 5. Bg2 {[%clk 0:03:00]}  d6 {[%clk 0:02:53]} 6. c3 {[%clk 0:03:00]}  a6 {[%clk 0:02:53]} 7. a4 {[%clk 0:02:59]}  Ba7 {[%clk 0:02:54]} 8. Na3 {[%clk 0:02:58]}  Be6 {[%clk 0:02:49]} 9. Nc2 {[%clk 0:02:55]}  h6 {[%clk 0:02:48]} 10. O-O {[%clk 0:02:51]}  O-O {[%clk 0:02:48]} 11. Be3 {[%clk 0:02:51]}  Bxe3 {[%clk 0:02:47]} 12. Nxe3 {[%clk 0:02:51]}  Re8 {[%clk 0:02:46]} 13. Re1 {[%clk 0:02:43]}  Qd7 {[%clk 0:02:46]} 14. b4 {[%clk 0:02:33]}  Bh3 {[%clk 0:02:47]} 15. b5 {[%clk 0:02:19]}  axb5 {[%clk 0:02:47]} 16. axb5 {[%clk 0:02:18]}  Ne7 {[%clk 0:02:47]} 17. c4 {[%clk 0:02:14]}  Bxg2 {[%clk 0:02:45]} 18. Kxg2 {[%clk 0:02:14]}  c6 {[%clk 0:02:46]} 19. bxc6 {[%clk 0:02:13]}  bxc6 {[%clk 0:02:47]} 20. Nh4 {[%clk 0:02:08]}  d5 {[%clk 0:02:45]} 21. cxd5 {[%clk 0:02:08]}  cxd5 {[%clk 0:02:46]} 22. Rxa8 {[%clk 0:02:08]}  Rxa8 {[%clk 0:02:46]} 23. Nhf5 {[%clk 0:01:57]}  Nxf5 {[%clk 0:02:37]} 24. Nxf5 {[%clk 0:01:57]}  dxe4 {[%clk 0:02:37]} 25. dxe4 {[%clk 0:01:58]}  Qxd1 {[%clk 0:02:37]} 26. Rxd1 {[%clk 0:01:58]}  Nxe4 {[%clk 0:02:38]} 27. Re1 {[%clk 0:01:30]}  Ra4 {[%clk 0:02:39]} 28. h4 {[%clk 0:01:21]}  h5 {[%clk 0:02:25]} 29. Re2 {[%clk 0:01:21]}  f6 {[%clk 0:02:16]} 30. Rc2 {[%clk 0:01:19]}  g6 {[%clk 0:02:09]} 31. Ne3 {[%clk 0:00:52]}  Ra6 {[%clk 0:02:03]} 32. Rc4 {[%clk 0:00:42]}  Nd6 {[%clk 0:01:56]} 33. Rc7 {[%clk 0:00:41]}  Ra2 {[%clk 0:01:51]} 34. Kf3 {[%clk 0:00:36]}  Nb5 {[%clk 0:01:13]} 35. Rb7 {[%clk 0:00:20]}  Nd4+ {[%clk 0:01:02]} 36. Kg2 {[%clk 0:00:20]}  Ra5 {[%clk 0:00:59]} 37. Nc4 {[%clk 0:00:20]}  Rd5 {[%clk 0:00:58]} 38. Ne3 {[%clk 0:00:16]}  Rc5 {[%clk 0:00:58]} 39. Rd7 {[%clk 0:00:15]}  Kf8 {[%clk 0:00:52]} 40. Nd5 {[%clk 0:00:12]}  Rc6 {[%clk 0:00:53]} 41. Ne7 {[%clk 0:00:11]}  Ke8 {[%clk 0:00:44]} 42. Ra7 {[%clk 0:00:11]}  Rc2 {[%clk 0:00:42]} 43. Nxg6 {[%clk 0:00:11]}  Nf5 {[%clk 0:00:40]} 44. Kf3 {[%clk 0:00:08]}  Nd4+ {[%clk 0:00:31]} 45. Ke4 {[%clk 0:00:07]}  Rxf2 {[%clk 0:00:28]} 46. Kd5 {[%clk 0:00:07]}  Rd2 {[%clk 0:00:23]} 47. Rh7 {[%clk 0:00:07]}  Nb5+ {[%clk 0:00:14]} 48. Ke6 {[%clk 0:00:06]}  Rd6+ {[%clk 0:00:13]} 49. Kf5 {[%clk 0:00:07]}  Nd4+ {[%clk 0:00:14]} 50. Ke4 {[%clk 0:00:07]}  Ra6 {[%clk 0:00:09]} 51. Re7+ {[%clk 0:00:06]}  Kd8 {[%clk 0:00:10]} 52. Rh7 {[%clk 0:00:06]}  Ke8 {[%clk 0:00:08]} 53. Re7+ {[%clk 0:00:04]}  Kd8 {[%clk 0:00:09]} 54. Rb7 {[%clk 0:00:04]}  Ra3 {[%clk 0:00:09]} 55. Kd5 {[%clk 0:00:04]}  Rxg3 {[%clk 0:00:05]} 56. Nh8 {[%clk 0:00:03]}  Ra3 {[%clk 0:00:03]} 57. Nf7+ {[%clk 0:00:03]}  Ke8 {[%clk 0:00:04]} 58. Nd6+ {[%clk 0:00:03]}  Kf8 {[%clk 0:00:05]} 59. Rf7+ {[%clk 0:00:04]}  Kg8 {[%clk 0:00:06]} 60. Rxf6 {[%clk 0:00:04]}  Nf3 {[%clk 0:00:06]} 61. Nf5 {[%clk 0:00:02]}  Rb3 {[%clk 0:00:03]} 62. Ne7+ {[%clk 0:00:01]}  Kg7 {[%clk 0:00:03]} 63. Rf5 {[%clk 0:00:01]}  Ra3 {[%clk 0:00:03]} 0-1


[Site "https://www.chess.com"]